Cogmind - Beta 12 @@@ ROGUE MODE // 2023.04.25 @ 13:55:12 Player: Exp. Geonium Core Result: Destroyed by G-67 Veteran with Plasma Rifle Performance ------------- Evolutions (7) 3500 Regions Visited (27) 5400 Robots Destroyed (173) 865 Value Destroyed (10619) 10619 Prototype IDs (40) 800 Alien Tech Used (0) 0 Bonus (12161) 12161 TOTAL SCORE: 33345 Bonus ------- High Alert Combat Kills 1334 Follower Combat Kills 4644 Entered Garrisons 2000 Used RIF Installer 5000 Entered DSFs 500 Aligned with FarCom 300 Friendly Fire -1617 Cogmind --------- Core Integrity 0/1300 Matter 266/300 Energy 99/100 System Corruption 3% Temperature Cool (12) Movement Core (50) Location -3/Garrison Parts ------- > --- POWER (2) -------- (None) > --- PROPULSION (5) --- (None) > --- UTILITY (12) ----- Experimental Target Analyzer System Shield Relay Coupler [Swarmer] (16) Relay Coupler [Duelist] (31) Relay Coupler [Sentry] (20) Relay Coupler [Specialist] (26) Relay Coupler [Specialist] (29) Relay Coupler [Hunter] (2) > --- WEAPON (2) ------- (None) > --- INVENTORY (5) ---- Experimental Energy Well (600) Point Defense Array Improved Matter Neutralizer Advanced Remote Datajack Heavy Mace Peak State ------------ > --- POWER ------------ Light Quantum Reactor Light Quantum Reactor > --- PROPULSION ------- Myomer Leg Myomer Leg Myomer Leg Centrium Leg Centrium Leg > --- UTILITY ---------- Experimental Power Amplifier High-capacity Storage Unit Improved Force Field Hacking Suite System Shield Relay Coupler [NC] Relay Coupler [Swarmer] Relay Coupler [Grunt] Relay Coupler [Duelist] Relay Coupler [Sentry] Relay Coupler [Specialist] Relay Coupler [Hunter] > --- WEAPON ----------- Hypervelocity Coil Gun Hypervelocity Coil Gun > --- INVENTORY -------- Experimental Energy Well Experimental Energy Well Experimental Energy Well Experimental Matter Compressor Experimental Target Analyzer Point Defense Array Point Defense Array Relay Coupler [Brawler] Relay Coupler [Sentry] Relay Coupler [Sentry] Relay Coupler [Demolisher] Relay Coupler [Demolisher] Relay Coupler [Demolisher] Relay Coupler [Specialist] Compact HERF Cannon Improved Matter Neutralizer Hypervelocity Coil Gun Improved Remote Datajack Advanced Remote Datajack Heavy Mace [Rating: 129] Favorites ----------- Power Ion Engine Engine Ion Engine Power Core Light Nuclear Core Reactor Light Quantum Reactor Propulsion Centrium Leg Treads Light Treads Leg Centrium Leg Wheel Armored Huge Wheel Hover Unit Combat Airjet Flight Unit Flying Fortress v7 Utility Relay Coupler [Sentry] Device Gravity Neutralizer Storage Lightpack 2.0 Processor Improved Target Analyzer Hackware Relay Coupler [Sentry] Protection Hardened Medium Armor Plating Weapon Remote Datajack Energy Gun Small Laser Energy Cannon Heavy Ion Cannon Ballistic Gun Improved Heavy Machine Gun Ballistic Cannon Heavy Flak Cannon Launcher Grenade Launcher Special Weapon Remote Datajack Impact Weapon Powered Hammer Slashing Weapon Power Sword Special Melee Weapon Datajack Build | -11 -10 -10 -10 -9 -8 -8 -8 -8 -7 -7 -7 -7 -6 -6 -6 -6 -5 -5 -4 -4 -4 -4 -4 -4 -3 -3 -3 ------- Run | Jun Mat Min Exi Min Mat Gar Mat Gar Fac Gar Fac Gar Fac Gar Fac Gar Fac Gar Fac Gar Fac Gar Fac DSF Res Tes Gar Slots Evolved 14 | . . . . . 4 . . . 2 . . . 2 . . . 2 . 2 . . . . . 2 . . Power 1 | . . . . . . . . . . . . . . . . . . . . . . . . . 1 . . Propulsion 3 | . . . . . 1 . . . 1 . . . . . . . . . 1 . . . . . . . . Utility 10 | . . . . . 3 . . . 1 . . . 2 . . . 2 . 1 . . . . . 1 . . Weapon . | . . . . . . . . . . . . . . . . . . . . . . . . . . . . Parts Attached 300 | 2 . 7 1 5 9 4 15 14 12 21 2 11 17 22 7 10 19 33 3 24 . 23 1 2 10 19 7 Power 22 | . . 1 . . . . 2 1 . 2 . . . 1 . 1 4 5 . 1 . 2 . . 1 1 . Engine 5 | . . 1 . . . . . 1 . . . . . . . . 2 1 . . . . . . . . . Core 9 | . . . . . . . 2 . . 2 . . . 1 . 1 2 . . 1 . . . . . . . Reactor 8 | . . . . . . . . . . . . . . . . . . 4 . . . 2 . . 1 1 . Propulsion 60 | 2 . . . . 2 . 3 1 1 . . 4 5 2 1 3 5 15 1 3 . 7 . . . 4 1 Treads 13 | 2 . . . . 1 . 1 1 . . . 2 1 . . . 2 2 . . . . . . . . 1 Leg 24 | . . . . . . . . . . . . . . . . . 1 8 1 3 . 7 . . . 4 . Wheel 5 | . . . . . 1 . 2 . . . . 2 . . . . . . . . . . . . . . . Hover 17 | . . . . . . . . . . . . . 4 2 1 3 2 5 . . . . . . . . . Flight 1 | . . . . . . . . . 1 . . . . . . . . . . . . . . . . . . Utility 129 | . . 4 1 3 3 2 2 9 6 8 1 5 6 13 4 4 8 9 2 14 . 8 1 2 6 8 . Device 21 | . . 1 . 1 . . . 3 1 1 . . . 1 1 1 2 1 2 3 . . . . 1 2 . Storage 3 | . . . 1 . 1 . . . . . . . . . . . 1 . . . . . . . . . . Processor 3 | . . . . . . . . . 1 . . . . . . . . . . 1 . . . . . 1 . Hackware 82 | . . . . . 1 1 . 4 2 7 1 4 6 9 3 3 4 7 . 9 . 8 1 2 5 5 . Protection 20 | . . 3 . 2 1 1 2 2 2 . . 1 . 3 . . 1 1 . 1 . . . . . . . Artifact . | . . . . . . . . . . . . . . . . . . . . . . . . . . . . Weapon 89 | . . 2 . 2 4 2 8 3 5 11 1 2 6 6 2 2 2 4 . 6 . 6 . . 3 6 6 Energy Gun 6 | . . . . . . . 1 . . . . . . 1 . . . . . 2 . 1 . . . 1 . Energy Cannon 15 | . . 1 . 1 1 . 3 1 2 2 . . . . 1 . . . . . . . . . . . 3 Ballistic Gun 22 | . . 1 . 1 2 . 1 . . 1 . 2 3 2 . . 1 2 . . . . . . 2 4 . Ballistic Cannon 4 | . . . . . . . . 1 2 1 . . . . . . . . . . . . . . . . . Launcher 5 | . . . . . . 1 1 . . 3 . . . . . . . . . . . . . . . . . Special Weapon 21 | . . . . . . . . 1 1 1 . . 3 1 . 1 1 1 . 2 . 4 . . 1 1 3 Impact Weapon 7 | . . . . . . . . . . 1 1 . . . 1 . . 1 . 2 . 1 . . . . . Slashing Weapon 7 | . . . . . 1 1 2 . . . . . . 2 . 1 . . . . . . . . . . . Piercing Weapon . | . . . . . . . . . . . . . . . . . . . . . . . . . . . . Special Melee Weapon 2 | . . . . . . . . . . 2 . . . . . . . . . . . . . . . . . Unidentified Prototypes 11 | . . . . 1 . . 2 . . . . . 1 1 . . 2 . . . . . . . . 4 . Parts Lost 83 | . . . . . . 2 9 2 . 7 . 2 1 4 2 4 5 13 . 9 . 4 . . . 15 4 Power 13 | . . . . . . 1 1 1 . 2 . . . 1 . 1 . 3 . . . 1 . . . 2 . Propulsion 27 | . . . . . . . 3 . . . . 1 . 2 1 2 3 5 . 2 . . . . . 5 3 Utility 26 | . . . . . . 1 2 1 . 1 . 1 1 1 . . 2 3 . 5 . 1 . . . 6 1 Weapon 17 | . . . . . . . 3 . . 4 . . . . 1 1 . 2 . 2 . 2 . . . 2 . Highest Loss Streak 15 | . . . . . . 1 4 1 . 6 . 1 1 2 2 3 4 6 . 4 . 2 . . . 15 2 To Critical Strikes . | . . . . . . . . . . . . . . . . . . . . . . . . . . . . Average Slot Usage (%) 81 | . 85 91 100 93 62 70 63 66 58 51 59 74 78 80 84 85 94 90 86 91 100 97 100 96 99 87 46 Engine 4 | . 14 14 14 14 9 8 . 8 7 . . . . . . . 2 3 . . . . . . . . . Core 1 | . . . . . . . 7 . . 2 7 7 6 5 6 5 2 . . 2 5 . . . . . . Reactor 1 | . . . . . . . . . . . . . . . . . . 1 5 2 . 4 5 5 9 7 . Treads 7 | . 28 28 28 28 9 9 4 5 . . . 13 2 . . . 7 3 5 1 . . . . . . . Leg 6 | . . . . . . . . . . . . . . . . . 3 6 15 23 26 25 26 26 23 19 4 Wheel 2 | . . . . . 9 9 9 9 . . . 6 . . . . . . . . . . . . . . . Hover 4 | . . . . . . . . . . . . . 18 24 26 26 8 10 . . . . . . . . . Device 2 | . . . . . . . . 4 10 2 . . . . 2 1 6 6 2 6 . . . . 1 3 . Storage 7 | . 14 14 14 14 9 9 9 9 7 7 7 7 6 6 6 6 3 5 5 5 5 5 5 5 4 3 . Hackware 22 | . . . . . 8 12 12 6 5 15 21 21 22 24 29 31 41 39 42 36 52 50 52 49 49 42 33 Protection 3 | . . 5 14 14 8 5 5 5 4 . . 1 6 3 . . 1 . . 1 . . . . . . . Energy Cannon 3 | . . 5 14 16 . . 7 5 5 2 . . . . 4 . . . . . . . . . . . 1 Ballistic Gun 3 | . 14 14 14 6 8 . . 1 . . . 2 9 5 . . . 1 . . . . . . 2 6 . Special Weapon 2 | . . . . . . . . 4 3 5 7 5 3 3 6 6 4 2 5 4 5 5 5 5 3 . . Impact Weapon 1 | . . . . . . . . . . 3 7 5 . . . 4 . 3 5 3 5 2 5 5 2 . . Slashing Weapon 1 | . . . . . . 9 6 . . . . . . 3 . 1 5 1 . . . . . . . . . Naked Turns . | . . . . . . . . . . . . . . . . . . . . . . . . . . . . Heaviest Build 94 | 13 13 27 62 67 62 27 38 39 40 23 18 21 23 29 25 22 63 67 75 89 61 63 62 62 94 94 12 Greatest Support 140 | 40 40 40 40 40 28 28 28 28 50 50 50 56 42 45 45 45 62 120 90 130 130 140 135 135 135 135 25 Greatest Overweight (x) 3 | . . . 1 1 2 . 1 1 . . . . 1 . . . 1 2 . 1 . . . . . 1 3 Average Overweight (x) . | . . . . 1 . . . 1 . . . . . . . . . . . . . . . . . . . Largest Inventory Capacity 40 | 8 8 8 20 20 40 40 40 40 40 40 40 40 40 40 40 40 40 20 20 20 20 20 20 20 20 20 5 Average Capacity 27 | 8 8 8 16 20 39 40 40 40 40 40 40 40 40 40 40 40 17 20 20 20 20 20 20 20 20 17 5 Most Carried 40 | 6 4 8 17 20 24 24 30 33 32 40 38 40 39 40 37 37 37 20 19 20 20 20 19 20 20 20 5 Average Carried 22 | 5 4 6 11 19 20 23 27 30 29 35 36 38 35 35 34 34 14 19 19 19 20 19 19 18 18 17 4 Final Capacity 40 | 8 8 8 20 20 40 40 40 40 40 40 40 40 40 40 40 40 20 20 20 20 20 20 20 20 20 5 5 Final Carried 39 | 4 4 8 17 20 22 24 24 30 32 37 38 39 35 37 33 37 20 20 19 20 20 20 19 20 20 5 5 Class Distribution -------------------- 51% | Botlord-Mutant 17% | Hauler-Mutant 17% | Mutant 12% | Bothacker-Mutant Dominant Class ---------------- Mutant | -10/Materials Mutant | -10/Mines Mutant | -10/Exiles Mutant | -9/Mines Hauler-Mutant | -8/Materials Hauler-Mutant | -8/Garrison Hauler-Mutant | -8/Materials Bothacker-Mutant | -8/Garrison Bothacker-Mutant | -7/Factory Bothacker-Mutant | -7/Garrison Bothacker-Mutant | -7/Factory Botlord-Mutant | -7/Garrison Botlord-Mutant | -6/Factory Botlord-Mutant | -6/Garrison Botlord-Mutant | -6/Factory Botlord-Mutant | -6/Garrison Botlord-Mutant | -5/Factory Botlord-Mutant | -5/Garrison Botlord-Mutant | -4/Factory Botlord-Mutant | -4/Garrison Botlord-Mutant | -4/Factory Botlord-Mutant | -4/Garrison Botlord-Mutant | -4/Factory Botlord-Mutant | -4/DSF Botlord-Mutant | -3/Research Botlord-Mutant | -3/Testing Botlord-Mutant | -3/Garrison Resources | -11 -10 -10 -10 -9 -8 -8 -8 -8 -7 -7 -7 -7 -6 -6 -6 -6 -5 -5 -4 -4 -4 -4 -4 -4 -3 -3 -3 ----------- Run | Jun Mat Min Exi Min Mat Gar Mat Gar Fac Gar Fac Gar Fac Gar Fac Gar Fac Gar Fac Gar Fac Gar Fac DSF Res Tes Gar Matter Collected 5994 | 176 42 86 . 113 122 111 210 427 438 368 . 238 378 488 60 271 71 605 . 438 . 462 . 56 78 545 211 Remotely . | . . . . . . . . . . . . . . . . . . . . . . . . . . . . Salvage Created 6791 | . 91 59 . 49 1197 200 1226 575 207 289 . 87 370 397 40 209 71 462 . 456 . 114 . 70 78 423 121 Parts 342 | . 7 7 . 6 76 26 46 34 11 18 . 2 14 19 3 2 1 14 . 20 . 8 . . 4 22 2 Haulers Intercepted 1 | . . . . . 1 . . . . . . . . . . . . . . . . . . . . . . Recyclers Shooed 7 | . . . . . 1 . 3 . 1 . . . 1 . . . . . . . . . . . . 1 . Parts Field Recycled . | . . . . . . . . . . . . . . . . . . . . . . . . . . . . Retrieved Matter . | . . . . . . . . . . . . . . . . . . . . . . . . . . . . Parts Self-Destructed . | . . . . . . . . . . . . . . . . . . . . . . . . . . . . Prevented . | . . . . . . . . . . . . . . . . . . . . . . . . . . . . Kills | -11 -10 -10 -10 -9 -8 -8 -8 -8 -7 -7 -7 -7 -6 -6 -6 -6 -5 -5 -4 -4 -4 -4 -4 -4 -3 -3 -3 ------- Run | Jun Mat Min Exi Min Mat Gar Mat Gar Fac Gar Fac Gar Fac Gar Fac Gar Fac Gar Fac Gar Fac Gar Fac DSF Res Tes Gar Combat Hostiles Destroyed 143 | . 6 3 . 2 21 16 18 17 7 13 . 3 7 6 1 . 1 7 . 8 . 2 . 1 1 2 1 Melee 16 | . . . . . . 1 9 . . . . . . . . . 1 3 . 1 . 1 . . . . . Guns 62 | . 6 3 . 2 20 1 2 1 . 1 . 2 7 6 . . . 1 . 6 . 1 . . 1 2 . Cannons 29 | . . . . . . . 4 16 7 . . . . . 1 . . . . . . . . . . . 1 AOE 30 | . . . . . 1 14 3 . . 12 . . . . . . . . . . . . . . . . . Classes Destroyed 19 | . 1 1 . 1 7 . 4 . 2 . . . . 1 . . . . . 1 . 1 . . . . . Worker 5 | . . . . . 2 . 1 . 1 . . . . . . . . . . . . . . . . 1 . Builder 2 | . . 1 . . . . 1 . . . . . . . . . . . . . . . . . . . . Tunneler 2 | . . . . 1 . . 1 . . . . . . . . . . . . . . . . . . . . Hauler 1 | . . . . . 1 . . . . . . . . . . . . . . . . . . . . . . Recycler 6 | . . . . . . . 4 . . . . . 1 . . . . . . . . . . . . 1 . Mechanic 1 | . . . . . . . 1 . . . . . . . . . . . . . . . . . . . . Operator 4 | . . . . . 2 . 1 . . . . . . . . . . . . . . . . . . 1 . Watcher 4 | . . . . . 3 . . . . . . . . 1 . . . . . . . . . . . . . Swarmer 54 | . 6 3 . 2 3 13 4 3 . 10 . 2 5 1 . . . . . 2 . . . . . . . Cutter 2 | . . . . . . . . . . . . . . . . . . . . 2 . . . . . . . Grunt 52 | . . . . . 9 2 10 10 5 3 . . 1 2 . . . 4 . 2 . . . 1 1 2 . Brawler 3 | . . . . . . . 2 . . 1 . . . . . . . . . . . . . . . . . Duelist 2 | . . . . . . . 1 1 . . . . . . . . . . . . . . . . . . . Sentry 16 | . . . . . 7 1 1 3 . . . . 1 . . . 1 1 . 1 . . . . . . . Demolisher 1 | . . . . . . . . . 1 . . . . . . . . . . . . . . . . . . Specialist 1 | . . . . . . . . . . . . . . . . . . . . . . 1 . . . . . Hunter 2 | . . . . . 2 . . . . . . . . . . . . . . . . . . . . . . Programmer 12 | . . . . . . . . . 1 . . 1 . 3 1 . . 2 . 2 . 1 . . . 1 . Behemoth 3 | . . . . . . . . . . . . . . 1 . . . 1 . . . . . . . . 1 Best Kill Streak 8 | . 3 4 . 2 8 5 7 4 3 5 . 2 4 4 1 . 1 2 . 2 . 1 . 1 1 2 1 Combat Bots Only 8 | . 3 3 . 2 8 4 4 4 3 5 . 2 3 4 1 . 1 2 . 2 . 1 . 1 1 1 1 Max Kills in Single Turn 4 | . 1 1 . 1 2 4 1 1 1 3 . 1 2 1 1 . 1 1 . 1 . 1 . 1 1 1 1 Gunslinging 1 | . . . . . . . . . . . . . 1 . . . . . . . . . . . . . . Exploded 4 | . . . . . 1 4 1 . . 3 . . . . . . . . . . . . . . . . . Melee 1 | . . . . . . 1 1 . . . . . . . . . 1 1 . 1 . 1 . . . . . Uniques/NPCs Destroyed . | . . . . . . . . . . . . . . . . . . . . . . . . . . . . Combat | -11 -10 -10 -10 -9 -8 -8 -8 -8 -7 -7 -7 -7 -6 -6 -6 -6 -5 -5 -4 -4 -4 -4 -4 -4 -3 -3 -3 -------- Run | Jun Mat Min Exi Min Mat Gar Mat Gar Fac Gar Fac Gar Fac Gar Fac Gar Fac Gar Fac Gar Fac Gar Fac DSF Res Tes Gar Damage Taken 16939 | . 201 122 . 18 317 324 1635 609 239 1148 26 545 639 605 165 322 450 1798 . 2863 . 1012 40 352 212 2296 1001 Core 3364 | . 49 . . . 35 37 366 103 27 113 . 61 121 43 11 75 107 360 . 387 . 98 . 68 41 666 596 Absorbed by Shields 928 | . . . . . . . . 112 29 . . . . . . . . . . 326 . . . . 82 358 21 Reduced by Siege Mode 76 | . . . . . . . . . . . . . . . . . . . . 76 . . . . . . . Regen/Repaired (Parts) 377 | . . . . . . . . . . . . . 52 . . . . . . . . . 237 . . 88 . Core Remaining (%) 60 | 100 . . . 80 . . . 1 . . . 71 . . . 70 . 53 . . . . . 51 . . . Volleys Fired 567 | . 14 8 . . 4 10 51 64 43 34 4 16 43 55 21 10 7 28 3 53 . 30 2 5 11 34 17 Largest 2 | . 2 1 . . 1 1 2 2 2 1 1 2 2 2 1 1 1 1 1 1 . 1 1 1 2 2 1 Hottest 140 | . 60 75 . . 65 30 140 118 118 75 5 46 30 38 65 5 5 35 7 65 . 63 7 7 70 90 113 Shots Fired 769 | . 26 8 . 3 109 11 55 77 50 34 4 20 51 81 22 10 7 27 3 53 . 32 2 5 12 50 17 Gun 371 | . 26 7 . 3 105 1 12 9 . 2 . 8 20 68 . . . 18 . 32 . 10 . . 2 48 . Cannon 180 | . . 1 . . 4 . 37 65 45 11 . . . . 11 . . . . . . . . . . . 6 Launcher 26 | . . . . . . 10 6 . . 10 . . . . . . . . . . . . . . . . . Special 192 | . . . . . . . . 3 5 11 4 12 31 13 11 10 7 9 3 21 . 22 2 5 10 2 11 Kinetic 371 | . 14 7 . 3 105 1 . 52 25 4 . 8 20 68 . . . 18 . . . . . . 2 44 . Thermal 168 | . 12 1 . . 4 . 37 22 20 9 . . . . 11 . . . . 32 . 10 . . . 4 6 Explosive 26 | . . . . . . 10 6 . . 10 . . . . . . . . . . . . . . . . . Electromagnetic 12 | . . . . . . . 12 . . . . . . . . . . . . . . . . . . . . Robot Hit Streak 17 | . 3 2 . 4 13 12 10 12 10 3 3 7 13 17 5 6 2 11 2 7 . 10 7 12 14 13 8 Robot Miss Streak 12 | . 5 2 . . 4 1 2 12 5 8 1 3 1 3 2 2 3 2 1 2 . 2 . . 2 3 1 Penetration Max 1 | . . . . . . . . . . . . . . . . . . 1 . . . . . . . 1 . Secondary Targets 4 | . . . . . . . . . . . . . 2 1 . . . . . . . . . . . 1 . Max Gunslinging Chain 1 | . . . . . . . . . . . . . 1 1 . . . . . . . . . . . 1 . Autonomous 109 | . . . . 3 105 1 . . . . . . . . . . . . . . . . . . . . . Shots Hit Robots 628 | . 12 7 . 3 82 6 59 55 37 23 2 21 41 48 16 19 7 46 2 47 . 31 2 7 10 31 14 Core Hits 298 | . 7 4 . 2 40 22 34 47 28 34 . 4 11 13 3 3 2 6 . 11 . 4 . . 3 18 2 Critical Kills 6 | . . . . . . . . . . . . . . . . . . . . . . . . . 1 5 . Critical Parts Destroyed 18 | . . . . . 1 . . . . 1 . . . . 1 . . 3 . 3 . 1 . . . 8 . Critical Strikes 30 | . . . . . 1 . 1 . . 1 . . . 1 1 . 2 4 . 4 . 1 . . 1 13 . Destroy 15 | . . . . . 1 . . . . . . . . . . . . . . . . . . . 1 13 . Smash 10 | . . . . . . . . . . 1 . . . . 1 . . 3 . 4 . 1 . . . . . Sever 5 | . . . . . . . 1 . . . . . . 1 . . 2 1 . . . . . . . . . Melee Attacks 264 | . . . . . 1 9 42 . . 23 6 15 . 24 5 21 8 49 1 27 1 29 . 3 . . . Impact 133 | . . . . . . . . . . 16 6 15 . . 3 8 . 24 1 27 1 29 . 3 . . . Slashing 124 | . . . . . 1 9 42 . . . . . . 24 2 13 8 25 . . . . . . . . . Piercing . | . . . . . . . . . . . . . . . . . . . . . . . . . . . . Sneak Attacks 23 | . . . . . 1 . 7 . . 2 . . . 7 . . . 3 . 1 . 2 . . . . . Combat Hostiles 2 | . . . . . . . . . . . . . . . . . . 2 . . . . . . . . . Follow-up Attacks . | . . . . . . . . . . . . . . . . . . . . . . . . . . . . Damage Inflicted 17823 | . 138 118 . 87 2646 1018 2558 1140 687 1909 . 348 412 1282 277 659 169 1653 . 1328 . 632 . 105 77 445 135 Guns 6018 | . 136 118 . 82 2400 27 157 90 . 18 . 71 412 706 . . . 437 . 836 . 117 . . 15 396 . Cannons 2651 | . . . . . 53 . 552 1045 687 25 . . . . 154 . . . . . . . . . . . 135 Explosions 2995 | . . . . . 98 920 317 . . 1660 . . . . . . . . . . . . . . . . . Melee 6007 | . . . . . 83 71 1528 . . 206 . 273 . 576 123 659 169 1211 . 488 . 515 . 105 . . . Ramming 152 | . 2 . . 5 12 . 4 5 . . . 4 . . . . . 5 . 4 . . . . 62 49 . Kinetic 6088 | . 82 118 . 82 2400 27 . 919 457 43 . 71 412 706 . . . 437 . . . . . . 15 319 . Thermal 2606 | . 54 . . . 151 . 636 216 230 . . . . . 154 . . . . 836 . 117 . . . 77 135 Explosive 2813 | . . . . . . 920 233 . . 1660 . . . . . . . . . . . . . . . . . Electromagnetic 157 | . . . . . . . 157 . . . . . . . . . . . . . . . . . . . . Impact 2372 | . . . . . . . . . . 206 . 273 . . 123 60 . 602 . 488 . 515 . 105 . . . Slashing 3635 | . . . . . 83 71 1528 . . . . . . 576 . 599 169 609 . . . . . . . . . Piercing . | . . . . . . . . . . . . . . . . . . . . . . . . . . . . Highest Corruption 21 | . . . . . . . 6 6 . . . . 1 2 2 3 . 7 3 12 12 21 21 21 . . 3 Average Corruption 8 | . . . . . . . 5 6 . . . . 1 1 2 2 . 6 2 11 12 15 21 21 . . 2 Corruption Purged 1 | . . . . . . . . . . . . . . . . . . . 1 . . . . . . . . Corruption Blocked . | . . . . . . . . . . . . . . . . . . . . . . . . . . . . Effects 221 | . . . . . . . 19 38 . . . . . 8 2 2 . 38 1 45 2 54 2 9 . . 1 Message Errors 50 | . . . . . . . 6 9 . . . . . 1 . . . 9 1 12 . 9 1 2 . . . Matter Fused 61 | . . . . . . . 6 11 . . . . . 3 1 1 . 9 . 12 1 13 1 2 . . 1 Heat Flow Errors 31 | . . . . . . . 2 4 . . . . . . . 1 . 5 . 5 . 11 . 3 . . . Energy Discharges 25 | . . . . . . . 1 2 . . . . . 1 . . . 10 . 4 . 5 . 2 . . . Parts Rejected 1 | . . . . . . . . . . . . . . . . . . . . . . 1 . . . . . Parts Fused 2 | . . . . . . . . 1 . . . . . . . . . 1 . . . . . . . . . Data Loss (minor) 15 | . . . . . . . 1 4 . . . . . 1 . . . . . 3 . 6 . . . . . Data Loss (major) 13 | . . . . . . . 1 1 . . . . . 1 . . . 2 . 3 1 4 . . . . . Misfires 9 | . . . . . . . 1 4 . . . . . . 1 . . . . 1 . 2 . . . . . Alerts 6 | . . . . . . . 1 . . . . . . . . . . 1 . 3 . 1 . . . . . Misdirections 3 | . . . . . . . . . . . . . . . . . . . . 1 . 2 . . . . . Weapon Failures 5 | . . . . . . . . 2 . . . . . 1 . . . 1 . 1 . . . . . . . Overload Shots . | . . . . . . . . . . . . . . . . . . . . . . . . . . . . Overflow Damage 1307 | . . . . . 43 25 350 . 10 109 . 70 . . 38 91 . 319 . 169 . 80 . 3 . . . Projectiles 15 | . . . . . . . 5 . 10 . . . . . . . . . . . . . . . . . . Explosions 58 | . . . . . . 25 . . . 33 . . . . . . . . . . . . . . . . . Melee 1234 | . . . . . 43 . 345 . . 76 . 70 . . 38 91 . 319 . 169 . 80 . 3 . . . Knockbacks 63 | . . . . . 1 . . 25 27 2 . 3 . . 2 . . . . 2 . . . 1 . . . Impact 9 | . . . . . 1 . . . . 1 . 3 . . 1 . . . . 2 . . . 1 . . . Kinetic 45 | . . . . . . . . 23 21 1 . . . . . . . . . . . . . . . . . Secondary 9 | . . . . . . . . 2 6 . . . . . 1 . . . . . . . . . . . . Self-Inflicted Damage 458 | . . . . . 6 125 37 . . 288 . . . . . . . 2 . . . . . . . . . Shots 16 | . . . . . . 7 1 . . 8 . . . . . . . . . . . . . . . . . Rammed 17 | . 2 . . 1 2 . 2 5 . . . 1 . . . . . 1 . 3 . . . . . . . Targets Rammed 27 | . 2 . . 2 2 . 2 5 . . . 1 . . . . . 1 . 3 . . . . 6 3 . Kicked 9 | . . . . . . . . . . . . . . . . . . . . . . . . . 6 3 . Crushed 1 | . . . . 1 . . . . . . . . . . . . . . . . . . . . . . . Highest Temperature 310 | . . 44 . . 32 7 310 301 145 55 . . 8 10 58 116 . 257 . 218 . 257 . 245 . 50 61 Average Temperature 75 | . . 23 . . 14 7 101 66 57 24 . . 6 4 23 66 . 112 . 71 . 106 . 94 . 20 24 Received Heat Transfer 3734 | . 6 . . . 99 72 630 293 114 225 9 135 90 204 54 54 63 378 . 341 . 141 . 73 . 630 123 Effects 1 | . . . . . . . . 1 . . . . . . . . . . . . . . . . . . . Energy Bleed 1 | . . . . . . . . 1 . . . . . . . . . . . . . . . . . . . Siege Activations 3 | . . . . . . . . . . . . . . . . . . . . 3 . . . . . . . Total Turns 21 | . . . . . . . . . . . . . . . . . . . . 21 . . . . . . . Longest Duration 15 | . . . . . . . . . . . . . . . . . . . . 15 . . . . . . . Robots Corrupted . | . . . . . . . . . . . . . . . . . . . . . . . . . . . . Combat Hostiles . | . . . . . . . . . . . . . . . . . . . . . . . . . . . . Parts Fried 7 | . . . . . . . . . . . . 2 . . . . . 3 . 1 . . . 1 . . . Impact Corruptions 24 | . . . . . . . . . . 2 . 5 . . 1 . . 7 . 4 . 4 . 1 . . . Robots Melted 1 | . . . . . . . . . . . . . . . . . . . . 1 . . . . . . . Combat Hostiles 1 | . . . . . . . . . . . . . . . . . . . . 1 . . . . . . . Parts Melted 9 | . . . . . . . 2 1 . . . . . 1 . . . . . 4 . 1 . . . . . Heat Transferred 3245 | . 125 . . . 124 . 927 296 296 . . . . . 185 . . . . 888 . 222 . . . 71 111 Parts Sabotaged . | . . . . . . . . . . . . . . . . . . . . . . . . . . . . Parts Stolen . | . . . . . . . . . . . . . . . . . . . . . . . . . . . . Parts Stripped . | . . . . . . . . . . . . . . . . . . . . . . . . . . . . Power Chain Reactions 1 | . . . . . . . 1 . . . . . . . . . . . . . . . . . . . . Missiles Intercepted . | . . . . . . . . . . . . . . . . . . . . . . . . . . . . Alert | -11 -10 -10 -10 -9 -8 -8 -8 -8 -7 -7 -7 -7 -6 -6 -6 -6 -5 -5 -4 -4 -4 -4 -4 -4 -3 -3 -3 ------- Run | Jun Mat Min Exi Min Mat Gar Mat Gar Fac Gar Fac Gar Fac Gar Fac Gar Fac Gar Fac Gar Fac Gar Fac DSF Res Tes Gar Peak Influence 1313 | . 156 76 . 59 752 1033 700 1058 807 1110 618 794 502 974 717 634 325 615 337 1016 535 1313 703 905 508 373 73 Initial 688 | . . 60 . . . 488 503 417 555 425 574 432 416 188 508 487 325 70 322 235 533 374 688 492 508 228 51 Average 488 | . 78 25 . 12 406 756 592 780 685 863 586 587 376 643 553 555 223 200 332 540 534 942 688 642 401 262 48 Maximum Alert Level 4 | . . . . . 3 3 3 3 3 4 2 3 2 3 3 2 1 2 1 3 2 4 3 3 2 1 . Low Security (%) 25 | 100 100 100 . 100 23 . . . . . . . 6 8 . . 37 59 . . . . . . . 18 100 Level 1 15 | . . . . . 8 . . . . . . . 25 18 . . 62 30 100 33 . 7 . . 60 81 . Level 2 32 | . . . . . 63 42 98 39 58 20 100 83 68 19 98 100 . 10 . 30 100 18 95 61 39 . . Level 3 24 | . . . . . 3 57 1 60 41 76 . 16 . 53 1 . . . . 35 . 52 4 38 . . . Level 4 2 | . . . . . . . . . . 2 . . . . . . . . . . . 21 . . . . . Level 5 . | . . . . . . . . . . . . . . . . . . . . . . . . . . . . High Security . | . . . . . . . . . . . . . . . . . . . . . . . . . . . . Max Security . | . . . . . . . . . . . . . . . . . . . . . . . . . . . . Sterilizations 1 | . . . . . . . . . . . . . . . . . . . . . . . . 1 . . . Squads Dispatched 30 | . 2 . . 1 2 . 3 . 2 . . . 4 . 4 . 1 . . . . . . 2 6 3 . Investigation 3 | . . . . 1 . . . . . . . . 1 . . . . . . . . . . . 1 . . Extermination 1 | . . . . . . . . . . . . . 1 . . . . . . . . . . . . . . Reinforcement 21 | . 2 . . . 2 . 2 . 2 . . . 2 . 3 . 1 . . . . . . 2 2 3 . Assault 1 | . . . . . . . 1 . . . . . . . . . . . . . . . . . . . . Garrison 4 | . . . . . . . . . . . . . . . 1 . . . . . . . . . 3 . . Intercept . | . . . . . . . . . . . . . . . . . . . . . . . . . . . . Searches Triggered . | . . . . . . . . . . . . . . . . . . . . . . . . . . . . Construction Impeded 4 | . . . . . . . 1 . 1 . . . . . . . . . . . . . . . 1 1 . Haulers Reinforced 1 | . . . . . . . . . . . . . . . 1 . . . . . . . . . . . . Active Scanning Responses . | . . . . . . . . . . . . . . . . . . . . . . . . . . . . Cargo Convoy Interrupts . | . . . . . . . . . . . . . . . . . . . . . . . . . . . . Stealth | -11 -10 -10 -10 -9 -8 -8 -8 -8 -7 -7 -7 -7 -6 -6 -6 -6 -5 -5 -4 -4 -4 -4 -4 -4 -3 -3 -3 --------- Run | Jun Mat Min Exi Min Mat Gar Mat Gar Fac Gar Fac Gar Fac Gar Fac Gar Fac Gar Fac Gar Fac Gar Fac DSF Res Tes Gar Distress Signals 16 | . 2 . . . 3 . 3 . . . . . 1 . 2 . . . . . . . . . 1 4 . Communications Jammed . | . . . . . . . . . . . . . . . . . . . . . . . . . . . . Distress Signals . | . . . . . . . . . . . . . . . . . . . . . . . . . . . . Times Spotted 443 | . 12 3 . 2 27 17 29 21 13 33 4 21 21 27 20 19 9 27 . 44 . 41 1 11 9 16 16 Peak Tracking Total 12 | . 6 3 . 1 5 4 5 5 3 12 4 6 6 9 8 11 6 6 1 7 . 5 1 5 5 10 10 Tactical Retreats 21 | . . . . . 3 . . 2 . . 1 2 2 2 1 1 . 1 . 3 . 1 . . . 2 . Traps | -11 -10 -10 -10 -9 -8 -8 -8 -8 -7 -7 -7 -7 -6 -6 -6 -6 -5 -5 -4 -4 -4 -4 -4 -4 -3 -3 -3 ------- Run | Jun Mat Min Exi Min Mat Gar Mat Gar Fac Gar Fac Gar Fac Gar Fac Gar Fac Gar Fac Gar Fac Gar Fac DSF Res Tes Gar Traps Triggered 47 | . . . . . 1 1 2 4 1 8 . 1 2 7 . 1 2 2 1 6 . 4 . 1 . . 3 Indirectly . | . . . . . . . . . . . . . . . . . . . . . . . . . . . . Trap Hack Attempts . | . . . . . . . . . . . . . . . . . . . . . . . . . . . . Triggered . | . . . . . . . . . . . . . . . . . . . . . . . . . . . . Disarmed . | . . . . . . . . . . . . . . . . . . . . . . . . . . . . Reprogrammed . | . . . . . . . . . . . . . . . . . . . . . . . . . . . . Reused . | . . . . . . . . . . . . . . . . . . . . . . . . . . . . Traps Extracted . | . . . . . . . . . . . . . . . . . . . . . . . . . . . . Installed . | . . . . . . . . . . . . . . . . . . . . . . . . . . . . Triggered . | . . . . . . . . . . . . . . . . . . . . . . . . . . . . Most Traps Carried 5 | . . 5 5 5 5 5 5 5 5 5 5 5 5 5 . . . . . . . . . . . . . Machines | -11 -10 -10 -10 -9 -8 -8 -8 -8 -7 -7 -7 -7 -6 -6 -6 -6 -5 -5 -4 -4 -4 -4 -4 -4 -3 -3 -3 ---------- Run | Jun Mat Min Exi Min Mat Gar Mat Gar Fac Gar Fac Gar Fac Gar Fac Gar Fac Gar Fac Gar Fac Gar Fac DSF Res Tes Gar Machines Disabled 37 | . . . . . 7 . 2 2 . 4 . 2 . 3 1 2 . 4 1 4 . 4 . 1 . . . Max in Single Turn 1 | . . . . . 1 . 1 1 . 1 . 1 . 1 1 1 . 1 1 1 . 1 . 1 . . . Garrison Relay 25 | . . . . . . . . 2 . 4 . 2 . 5 . 2 . 3 . 3 . 4 . . . . . Machines Repaired . | . . . . . . . . . . . . . . . . . . . . . . . . . . . . Machines Sabotaged . | . . . . . . . . . . . . . . . . . . . . . . . . . . . . Overloaded Fab Kills . | . . . . . . . . . . . . . . . . . . . . . . . . . . . . Hacking | -11 -10 -10 -10 -9 -8 -8 -8 -8 -7 -7 -7 -7 -6 -6 -6 -6 -5 -5 -4 -4 -4 -4 -4 -4 -3 -3 -3 --------- Run | Jun Mat Min Exi Min Mat Gar Mat Gar Fac Gar Fac Gar Fac Gar Fac Gar Fac Gar Fac Gar Fac Gar Fac DSF Res Tes Gar Machines Accessed 49 | . 1 1 2 2 5 1 4 3 2 1 1 . 2 3 2 1 2 1 2 3 1 1 1 . 2 4 1 Terminals 31 | . 1 . . . 4 1 3 3 1 1 . . 1 3 1 1 . 1 . 3 . 1 1 . 2 2 1 Fabricators 3 | . . . . . . . . . . . . . . . . . 1 . 1 . . . . . . 1 . Repair Stations . | . . . . . . . . . . . . . . . . . . . . . . . . . . . . Recycling Units . | . . . . . . . . . . . . . . . . . . . . . . . . . . . . Scanalyzers . | . . . . . . . . . . . . . . . . . . . . . . . . . . . . Garrison Access 10 | . . . . . 1 . 1 . 1 . 1 . 1 . 1 . 1 . 1 . 1 . . . . 1 . Total Hacks 74 | . 1 1 2 2 14 2 6 4 2 2 1 . 3 3 3 1 3 2 2 3 1 2 1 . 3 7 3 Successful 34 | . . 1 2 2 6 1 3 1 1 . 1 . 2 . 1 . 1 1 1 3 1 . 1 . 2 2 1 Failed 40 | . 1 . . . 8 1 3 3 1 2 . . 1 3 2 1 2 1 1 . . 2 . . 1 5 2 Catastrophic 16 | . . . . . 3 1 1 1 1 . . . 1 2 . 1 1 1 1 . . . . . . 1 1 Database Lockouts . | . . . . . . . . . . . . . . . . . . . . . . . . . . . . Manual 33 | . 1 . 1 . 13 2 5 1 . 2 . . . 1 . . 2 1 . . . . . . . 4 . Terminals 55 | . 1 . . . 13 2 5 4 1 2 . . 2 3 2 1 . 2 . 3 . 2 1 . 3 5 3 Fabricators 4 | . . . . . . . . . . . . . . . . . 2 . 1 . . . . . . 1 . Repair Stations . | . . . . . . . . . . . . . . . . . . . . . . . . . . . . Recycling Units . | . . . . . . . . . . . . . . . . . . . . . . . . . . . . Scanalyzers . | . . . . . . . . . . . . . . . . . . . . . . . . . . . . Garrison Access 10 | . . . . . 1 . 1 . 1 . 1 . 1 . 1 . 1 . 1 . 1 . . . . 1 . Terminal Hacks 18 | . . 1 2 2 1 1 1 1 . . . . 1 . . . . 1 . 3 . . 1 . 2 . 1 Record 1 | . . . 1 . . . . . . . . . . . . . . . . . . . . . . . . Open Door 5 | . . 1 . 2 . . . . . . . . . . . . . . . 1 . . . . . . 1 Open DSF 1 | . . . . . . . . . . . . . . . . . . . . . . . 1 . . . . Branch Access Points 1 | . . . . . . . . . . . . . . . . . . . . . . . . . 1 . . Emergency Access Points 2 | . . . . . . . . . . . . . . . . . . 1 . 1 . . . . . . . Terminal Index 1 | . . . . . . . . . . . . . . . . . . . . . . . . . 1 . . Garrison Index 2 | . . . . . 1 . 1 . . . . . . . . . . . . . . . . . . . . Locate Traps 1 | . . . . . . . . . . . . . 1 . . . . . . . . . . . . . . Garrison Registry 1 | . . . . . . 1 . . . . . . . . . . . . . . . . . . . . . Patrol Navigation 1 | . . . . . . . . . . . . . . . . . . . . 1 . . . . . . . Security Stations 1 | . . . . . . . . 1 . . . . . . . . . . . . . . . . . . . EX-Prototype ID Bank 1 | . . . 1 . . . . . . . . . . . . . . . . . . . . . . . . Fabricator Hacks . | . . . . . . . . . . . . . . . . . . . . . . . . . . . . Repair Station Hacks . | . . . . . . . . . . . . . . . . . . . . . . . . . . . . Recycling Unit Hacks . | . . . . . . . . . . . . . . . . . . . . . . . . . . . . Scanalyzer . | . . . . . . . . . . . . . . . . . . . . . . . . . . . . Garrison Access Hacks 10 | . . . . . 1 . 1 . 1 . 1 . 1 . 1 . 1 . 1 . 1 . . . . 1 . Unlock Access 10 | . . . . . 1 . 1 . 1 . 1 . 1 . 1 . 1 . 1 . 1 . . . . 1 . Unauthorized Hacks 6 | . . . . . 4 . 1 . . . . . . . . . . . . . . . . . . 1 . Terminals 5 | . . . . . 4 . 1 . . . . . . . . . . . . . . . . . . . . Botnet 4 | . . . . . 3 . 1 . . . . . . . . . . . . . . . . . . . . Operators 1 | . . . . . 1 . . . . . . . . . . . . . . . . . . . . . . Fabricators 1 | . . . . . . . . . . . . . . . . . . . . . . . . . . 1 . Fabnet 1 | . . . . . . . . . . . . . . . . . . . . . . . . . . 1 . Repair Stations . | . . . . . . . . . . . . . . . . . . . . . . . . . . . . Recycling Units . | . . . . . . . . . . . . . . . . . . . . . . . . . . . . Scanalyzers . | . . . . . . . . . . . . . . . . . . . . . . . . . . . . Garrison Access . | . . . . . . . . . . . . . . . . . . . . . . . . . . . . Data Cores Recovered 1 | . . . . . 1 . . . . . . . . . . . . . . . . . . . . . . Used . | . . . . . . . . . . . . . . . . . . . . . . . . . . . . Hacking Detections 38 | . 1 . . . 5 1 4 3 2 1 . . 1 3 1 1 2 1 2 3 . 1 1 . 2 2 1 Full Trace Events . | . . . . . . . . . . . . . . . . . . . . . . . . . . . . Feedback Events . | . . . . . . . . . . . . . . . . . . . . . . . . . . . . Feedback Blocked . | . . . . . . . . . . . . . . . . . . . . . . . . . . . . Robot Schematics Acquired . | . . . . . . . . . . . . . . . . . . . . . . . . . . . . Robots Built . | . . . . . . . . . . . . . . . . . . . . . . . . . . . . Authchips . | . . . . . . . . . . . . . . . . . . . . . . . . . . . . Time . | . . . . . . . . . . . . . . . . . . . . . . . . . . . . Total Robot Build Rating . | . . . . . . . . . . . . . . . . . . . . . . . . . . . . Part Schematics Acquired . | . . . . . . . . . . . . . . . . . . . . . . . . . . . . Parts Built . | . . . . . . . . . . . . . . . . . . . . . . . . . . . . Authchips . | . . . . . . . . . . . . . . . . . . . . . . . . . . . . Time . | . . . . . . . . . . . . . . . . . . . . . . . . . . . . Total Part Build Rating . | . . . . . . . . . . . . . . . . . . . . . . . . . . . . Parts Repaired . | . . . . . . . . . . . . . . . . . . . . . . . . . . . . Time . | . . . . . . . . . . . . . . . . . . . . . . . . . . . . Parts Recycled . | . . . . . . . . . . . . . . . . . . . . . . . . . . . . Recycled Matter . | . . . . . . . . . . . . . . . . . . . . . . . . . . . . Retrieved Matter . | . . . . . . . . . . . . . . . . . . . . . . . . . . . . Retrieved Components . | . . . . . . . . . . . . . . . . . . . . . . . . . . . . Parts Scanalyzed . | . . . . . . . . . . . . . . . . . . . . . . . . . . . . Part Schematics Acquired . | . . . . . . . . . . . . . . . . . . . . . . . . . . . . Parts Damaged . | . . . . . . . . . . . . . . . . . . . . . . . . . . . . Bothacking | -11 -10 -10 -10 -9 -8 -8 -8 -8 -7 -7 -7 -7 -6 -6 -6 -6 -5 -5 -4 -4 -4 -4 -4 -4 -3 -3 -3 ------------ Run | Jun Mat Min Exi Min Mat Gar Mat Gar Fac Gar Fac Gar Fac Gar Fac Gar Fac Gar Fac Gar Fac Gar Fac DSF Res Tes Gar Used RIF Installer 10 | . . . . . . 1 . 1 . 1 . 1 . 1 . 1 . 2 . 1 . 1 . . . . . Command Fork 2 | . . . . . . . . . . . . . . . . . . 1 . 1 . . . . . . . Zone Cloak 1 | . . . . . . . . . . . . . . . . . . . . . . 1 . . . . . Robot Detection 1 | . . . . . . . . 1 . . . . . . . . . . . . . . . . . . . Patrol Navigation 1 | . . . . . . . . . . . . . . . . 1 . . . . . . . . . . . Program Shield 1 | . . . . . . . . . . 1 . . . . . . . . . . . . . . . . . Autooverride 3 | . . . . . . . . . . . . 1 . 1 . . . 1 . . . . . . . . . Robots Hacked 154 | . . . . . . . . 2 2 9 2 10 18 12 8 10 3 10 2 23 . 19 1 6 8 5 4 Non-combat 23 | . . . . . . . . . . . 1 . 10 . 2 . . . 2 . . . 1 . 5 2 . Combat 131 | . . . . . . . . 2 2 9 1 10 8 12 6 10 3 10 . 23 . 19 . 6 3 3 4 Autooverrided 51 | . . . . . . . . . . . . 3 2 3 1 5 2 7 . 13 . 6 . 2 2 3 2 Robot Hacks Applied 114 | . . . . . . . . 2 3 9 2 8 19 9 9 6 2 4 2 11 . 13 1 4 6 2 2 parse_system 1 | . . . . . . . . . . . . . . . . 1 . . . . . . . . . . . no_distress 1 | . . . . . . . . . . . . . . . . . . . . . . . . . . 1 . map_walls 1 | . . . . . . . . . . . . . . . . . . . 1 . . . . . . . . drop_inventory 3 | . . . . . . . . . . . . . . . 1 . . . . . . . . . 2 . . ignore_parts 5 | . . . . . . . . . . . . . 4 . . . . . 1 . . . . . . . . purge_threat 4 | . . . . . . . . . . . . . 3 . . . . . . . . . . . 1 . . summon_haulers 1 | . . . . . . . . . . . . . . . 1 . . . . . . . . . . . . map_route 5 | . . . . . . . . . . . 1 . 2 . . . . . . . . . . . 2 . . find_garrison 5 | . . . . . . . . . 1 . 1 . 1 . 1 . 1 . . . . . . . . . . reboot_system 3 | . . . . . . . . . . . . . . 1 1 . . . . . . 1 . . . . . overwrite_iff 16 | . . . . . . . . 1 . 5 . 4 1 . . 2 . . . 2 . 1 . . . . . formatsys_low 7 | . . . . . . . . . . . . . 4 . 1 . . . . . . . 1 . . 1 . formatsys_high 62 | . . . . . . . . 1 2 4 . 4 4 8 4 3 1 4 . 9 . 11 . 4 1 . 2 Relay Couplers Released 107 | . . . . . . . . 9 . 15 . 13 . 18 . 8 . 10 . 13 . 21 . . . . . Machine Destruction 100 | . . . . . . . . 9 . 15 . 10 . 18 . 8 . 10 . 13 . 17 . . . . . Programmers 7 | . . . . . . . . . . . . 3 . . . . . . . . . 4 . . . . . Attached 74 | . . . . . . . . 2 2 6 1 4 6 8 3 3 4 7 . 9 . 8 1 2 4 4 . Fabnet Peak Effective % . | . . . . . . . . . . . . . . . . . . . . . . . . . . . . Robots Rewired 25 | . . . . . . 6 . . 1 . . . . 6 . . . . . 4 . 3 . . 1 . 4 Allies Hacked . | . . . . . . . . . . . . . . . . . . . . . . . . . . . . Hacks Repelled . | . . . . . . . . . . . . . . . . . . . . . . . . . . . . Allies | -11 -10 -10 -10 -9 -8 -8 -8 -8 -7 -7 -7 -7 -6 -6 -6 -6 -5 -5 -4 -4 -4 -4 -4 -4 -3 -3 -3 -------- Run | Jun Mat Min Exi Min Mat Gar Mat Gar Fac Gar Fac Gar Fac Gar Fac Gar Fac Gar Fac Gar Fac Gar Fac DSF Res Tes Gar Total Allies 173 | . . . . 1 . 6 . 2 3 10 . 10 11 17 6 10 3 14 . 29 . 25 1 7 5 4 9 Largest Group 15 | . . . . 1 . 6 5 1 1 4 1 5 6 13 15 7 2 6 . 9 4 9 3 8 9 5 3 Highest-Rated Group 478 | . . . . 31 . 108 90 18 34 92 12 128 126 405 446 218 186 196 . 322 172 435 123 478 388 264 152 Highest-Rated Ally 148 | . . . . 31 . 18 18 18 34 80 12 32 32 148 46 46 137 85 . 58 56 148 50 137 64 58 85 Total Orders 15 | . . . . . . . . . . 3 . . 1 1 1 1 2 2 . . . . 1 . 1 2 . STAY 2 | . . . . . . . . . . . . . . . . . . . . . . . . . 1 1 . AID 3 | . . . . . . . . . . . . . 1 . . . . . . . . . 1 . . 1 . EXPLORE 1 | . . . . . . . . . . . . . . . . . 1 . . . . . . . . . . RETURN 9 | . . . . . . . . . . 3 . . . 1 1 1 1 2 . . . . . . . . . Ally Attacks 884 | . . . . . . 10 4 7 8 53 3 54 40 73 53 65 17 113 . 124 . 154 . 43 26 12 25 Total Damage 22985 | . . . . . . 286 88 180 298 888 52 803 675 1610 841 1258 605 2413 . 3321 . 5759 . 1838 816 466 788 Kills 144 | . . . . . . 4 . 1 4 11 . 8 5 16 5 9 1 15 . 18 . 27 . 11 5 2 2 Allies Corrupted 4 | . . . . . . . 1 . . . . . . . . . . 1 . . . . . . . . 2 Allies Melted 2 | . . . . . . . . . . . . . . 1 . . . . . . . . . . . . 1 Intel | -11 -10 -10 -10 -9 -8 -8 -8 -8 -7 -7 -7 -7 -6 -6 -6 -6 -5 -5 -4 -4 -4 -4 -4 -4 -3 -3 -3 ------- Run | Jun Mat Min Exi Min Mat Gar Mat Gar Fac Gar Fac Gar Fac Gar Fac Gar Fac Gar Fac Gar Fac Gar Fac DSF Res Tes Gar Robot Analysis Total . | . . . . . . . . . . . . . . . . . . . . . . . . . . . . Derelict Logs Recovered 2 | . . 1 . 1 . . . . . . . . . . . . . . . . . . . . . . . Drone Launches 44 | . . . . . . . . . . 8 . . . 13 6 2 2 13 . . . . . . . . . Drone Recoveries 41 | . . . . . . . . . . 8 . . . 13 5 2 2 11 . . . . . . . . . Exploration | -11 -10 -10 -10 -9 -8 -8 -8 -8 -7 -7 -7 -7 -6 -6 -6 -6 -5 -5 -4 -4 -4 -4 -4 -4 -3 -3 -3 ------------- Run | Jun Mat Min Exi Min Mat Gar Mat Gar Fac Gar Fac Gar Fac Gar Fac Gar Fac Gar Fac Gar Fac Gar Fac DSF Res Tes Gar Turns Passed 15465 | 3 159 1018 630 890 610 437 992 1460 408 576 89 460 372 1026 136 308 635 1332 183 1069 40 1357 43 170 288 490 284 Spaces Moved 9750 | 1 71 325 297 362 469 313 482 579 518 687 124 320 298 957 102 304 385 703 143 573 26 880 30 118 201 329 153 Core 270 | . . . . . . . . . . . . . . . . . . . . . . . . . . 118 152 Treads 1917 | 1 71 325 297 362 47 . 73 315 . . . 42 37 . . . 222 88 . 37 . . . . . . . Legs 2434 | . . . . . . . . . . . . . . . . . 32 256 143 536 26 880 30 118 201 211 1 Wheels 1665 | . . . . . 422 313 409 264 . . . 257 . . . . . . . . . . . . . . . Hover 2114 | . . . . . . . . . . . . . 261 957 102 304 131 359 . . . . . . . . . Flight 1350 | . . . . . . . . . 518 687 124 21 . . . . . . . . . . . . . . . Fastest Speed 50 | 160 160 160 160 240 100 100 100 115 50 50 50 50 65 65 65 59 58 53 120 120 120 120 120 120 120 50 50 Average Speed 112 | 160 160 160 211 240 114 100 116 183 50 50 50 104 82 66 65 61 126 131 120 123 120 120 120 120 120 95 64 Slowest Speed 250 | 160 160 160 240 240 240 100 240 240 50 50 50 160 240 74 65 66 245 250 120 250 120 120 120 120 120 190 200 Overloaded Moves . | . . . . . . . . . . . . . . . . . . . . . . . . . . . . Propulsion Burnouts . | . . . . . . . . . . . . . . . . . . . . . . . . . . . . Robots Hopped 3 | . . . . . . . . . 3 . . . . . . . . . . . . . . . . . . Cave-ins Triggered . | . . . . . . . . . . . . . . . . . . . . . . . . . . . . Exploration Rate (%) 41 | 2 27 85 65 80 69 49 42 63 17 70 3 46 14 88 8 48 9 62 7 66 1 77 1 79 9 47 25 Regions Visited 27 Branch Regions 4 Pre-discovered Areas 1 | . . . 1 . . . . . . . . . . . . . . . . . . . . . . . . Known Exits Taken 12 | . . . . . 1 . 1 . 1 . 1 . 1 . 1 . 1 . 1 . 1 . 1 . 1 1 . Unknown Exits Taken 5 | 1 1 1 1 1 . . . . . . . . . . . . . . . . . . . . . . . Scrap Searched 2 | . . 1 . 1 . . . . . . . . . . . . . . . . . . . . . . . Spaces Dug 101 | . . . . . . 23 24 . 3 13 4 6 . 9 3 1 3 1 . 2 1 7 . . . . 1 Terrain Destroyed 256 | . . 1 . 4 69 35 71 . 4 28 4 6 . 9 3 1 3 5 . 2 1 7 . . . 1 2 Melee 46 | . . . . . . 1 8 . . 1 4 6 . 9 2 1 3 1 . 2 1 7 . . . . . Projectile 76 | . . 1 . 4 49 . 12 . 4 . . . . . 1 . . 3 . . . . . . . . 2 AOE 132 | . . . . . 20 34 51 . . 27 . . . . . . . . . . . . . . . . . Terrain Rammed . | . . . . . . . . . . . . . . . . . . . . . . . . . . . . Walls Destroyed . | . . . . . . . . . . . . . . . . . . . . . . . . . . . . Machines Disabled . | . . . . . . . . . . . . . . . . . . . . . . . . . . . . Actions | -11 -10 -10 -10 -9 -8 -8 -8 -8 -7 -7 -7 -7 -6 -6 -6 -6 -5 -5 -4 -4 -4 -4 -4 -4 -3 -3 -3 --------- Run | Jun Mat Min Exi Min Mat Gar Mat Gar Fac Gar Fac Gar Fac Gar Fac Gar Fac Gar Fac Gar Fac Gar Fac DSF Res Tes Gar Total 13273 | 4 89 814 301 384 536 411 783 899 614 856 138 407 389 1241 145 383 518 1012 151 834 33 1119 36 141 241 460 334 Wait 1639 | . 3 466 . . 36 12 179 198 15 56 . 12 20 93 6 24 62 143 . 43 6 106 4 6 4 52 93 Move 9727 | . 70 324 296 361 469 312 482 578 512 686 124 319 298 956 102 303 385 702 143 572 26 879 29 117 200 329 153 Hop 3 | . . . . . . . . . 3 . . . . . . . . . . . . . . . . . . Pick Up 192 | . . 5 3 7 9 3 9 12 9 20 1 13 4 23 . 10 21 18 . 7 . 6 . 5 7 . . Fast Attach 94 | . . 3 . 3 3 . 3 4 2 3 . . 5 3 . 1 15 15 2 13 . 10 . . . 8 1 Attach 112 | 2 . . . 1 6 3 9 5 3 10 1 6 6 9 3 5 4 8 1 7 . 3 1 2 6 5 6 Detach 23 | . . . . . 4 1 1 1 1 1 . 1 3 1 . . . . . 1 . 1 . . . 1 6 Swap 94 | . . 4 1 1 . 1 3 5 7 8 1 5 6 10 4 4 . 10 . 4 . 10 . . 4 6 . Drop 139 | 2 . 4 1 9 2 . 2 6 4 4 1 3 3 8 . 2 16 25 1 6 . 13 . 3 3 21 . Fire 567 | . 14 8 . . 4 10 51 64 43 34 4 16 43 55 21 10 7 28 3 53 . 30 2 5 11 34 17 Melee 264 | . . . . . 1 9 42 . . 23 6 15 . 24 5 21 8 49 1 27 1 29 . 3 . . . Ram 3 | . . . . . 1 . 1 . . . . . . . . . . 1 . . . . . . . . . Kick 9 | . . . . . . . . . . . . . . . . . . . . . . . . . 6 3 . Crush 15 | . 2 . . 2 1 . 1 5 . . . 1 . . . . . . . 3 . . . . . . . Escape Stasis 122 | . . . . . . . . 18 2 11 . 16 . 22 . 3 . 13 . 1 . 1 . . . . 35 Rewire 270 | . . . . . . 60 . 3 13 . . . 1 37 4 . . . . 97 . 31 . . . 1 23 Trap . | . . . . . . . . . . . . . . . . . . . . . . . . . . . . Miscellaneous . | . . . . . . . . . . . . . . . . . . . . . . . . . . . . Route ------- -11/Junkyard -10/Materials -10/Mines (discovered 3 exits: [*Mat x2] / *Exi) -10/Exiles -9/Mines -8/Materials (discovered 5 exits: *Fac x2 / *Sto x2 / Gar) -8/Garrison (discovered 3 exits: *Mat x3) -8/Materials (discovered 3 exits: *Fac / *Sto / Gar) -8/Garrison (discovered 3 exits: *Fac x3) -7/Factory -7/Garrison (discovered 3 exits: *Fac x3) -7/Factory -7/Garrison (discovered 2 exits: *Fac x2) -6/Factory (discovered 2 exits: [Low] / Gar) -6/Garrison (discovered 3 exits: *Fac x3) -6/Factory -6/Garrison -5/Factory -5/Garrison (discovered 2 exits: *Fac x2) -4/Factory -4/Garrison (discovered 2 exits: *Fac x2) -4/Factory -4/Garrison (discovered 4 exits: *Res x3 / *Fac) -4/Factory -4/DSF -3/Research (discovered 2 exits: *Tes x2) -3/Testing -3/Garrison History --------- Turn | Location | Event 4 | -11/Junkyard | Discovered new exit (range 0) 4 | -11/Junkyard | Entered Materials 151 | -10/Materials | Discovered new exit (range 8) 163 | -10/Materials | Entered Mines 233 | -10/Mines | Met a Derelict bent on vengeance 256 | -10/Mines | Discovered new exit (range 6) 269 | -10/Mines | Met a Derelict who couldn't figure out how to use a Trap Extractor 309 | -10/Mines | Build established: Mutant 1012 | -10/Mines | Found a hidden stash of uninstalled traps 1065 | -10/Mines | Learned Materials security intel 1087 | -10/Mines | Discovered new exit (range 6) 1175 | -10/Mines | Deemed a non-threat by the Exiles lab entrance 1175 | -10/Mines | Discovered new exit (range 5) 1181 | -10/Mines | Entered Exiles 1218 | -10/Exiles | Met 8R-AWN 1249 | -10/Exiles | Met EX-HEX 1297 | -10/Exiles | Met EX-BIN 1474 | -10/Exiles | Aligned with FarCom system 1477 | -10/Exiles | Given EX-Vault access code 1534 | -10/Exiles | Opened EX-Vault 1551 | -10/Exiles | Found AWS/Gauss 1562 | -10/Exiles | Found Lightpack 2.0 1567 | -10/Exiles | Found Flying Fortress v7 1621 | -10/Exiles | Warned to stay clear of 0b10 Research branches 1686 | -10/Exiles | Met EX-DEC 1710 | -10/Exiles | Learned location of Zion (-6) 1777 | -10/Exiles | Discovered new exit (range 14) 1811 | -10/Exiles | Stole three prototypes: Flying Fortress v7, Lightpack 2.0, AWS/Gauss 1811 | -10/Exiles | Entered Mines 1829 | -9/Mines | Met a Derelict shopkeep closing up shop 1941 | -9/Mines | Received a Mining Laser from a helpful Derelict 2070 | -9/Mines | Learned 4 Materials zone layouts 2427 | -9/Mines | Discovered new exit (range 15) 2572 | -9/Mines | Found the Drone Emporium 2583 | -9/Mines | Found Prototype Device 2583 | -9/Mines | Identified Thief Drone Bay 2701 | -9/Mines | Entered Materials 2701 | -8/Materials | Evolved 4 slots: Propulsion x1, Utility x3 2702 | -8/Materials | Identified exit to Storage 2900 | -8/Materials | Destroyed 8 combat bots 2996 | -8/Materials | Build established: Hauler-Mutant 3032 | -8/Materials | Discovered new exit (range 14) 3167 | -8/Materials | Discovered exit to Storage (range 9) 3197 | -8/Materials | Discovered new exit (range 16) 3311 | -8/Materials | Identified exit to Garrison 3311 | -8/Materials | Entered Garrison 3478 | -8/Garrison | Triggered checkpoint 3488 | -8/Garrison | Triggered checkpoint 3530 | -8/Garrison | Triggered checkpoint 3603 | -8/Garrison | Discovered new exit (range 35) 3603 | -8/Garrison | Discovered new exit (range 67) 3603 | -8/Garrison | Discovered new exit (range 55) 3614 | -8/Garrison | Triggered checkpoint 3636 | -8/Garrison | Triggered checkpoint 3706 | -8/Garrison | Triggered checkpoint 3727 | -8/Garrison | Installed Relay Interface Framework 3748 | -8/Garrison | Entered Materials 3748 | -8/Materials | Accompanied by 5 allies 3901 | -8/Materials | Discovered new exit (range 7) 4148 | -8/Materials | First assault squad dispatched 4221 | -8/Materials | Core integrity fell below 50% 4247 | -8/Materials | Lost 4 parts (1p1n1u1w) 4688 | -8/Materials | Discovered exit to Storage (range 11) 4736 | -8/Materials | Lost 3 parts (1n1u1w) 4740 | -8/Materials | Identified exit to Garrison 4740 | -8/Materials | Entered Garrison 4768 | -8/Garrison | Triggered checkpoint 4820 | -8/Garrison | Core integrity fell below 20% 4860 | -8/Garrison | Garrison Relay disabled 5080 | -8/Garrison | Triggered checkpoint 5152 | -8/Garrison | Triggered checkpoint 5247 | -8/Garrison | Discovered new exit (range 9) 5253 | -8/Garrison | Learned Factory security intel 5306 | -8/Garrison | Triggered checkpoint 5337 | -8/Garrison | Garrison Relay disabled 5532 | -8/Garrison | Triggered checkpoint 5642 | -8/Garrison | Build established: Bothacker-Mutant 5665 | -8/Garrison | Discovered new exit (range 8) 5834 | -8/Garrison | Triggered checkpoint 5914 | -8/Garrison | Discovered new exit (range 10) 5970 | -8/Garrison | Triggered checkpoint 6133 | -8/Garrison | Expanded RIF knowledge: Robot Detection 6200 | -8/Garrison | Entered Factory 6200 | -7/Factory | Evolved 2 slots: Propulsion x1, Utility x1 6202 | -7/Factory | FarCom data flow suspended 6608 | -7/Factory | Identified exit to Garrison 6608 | -7/Factory | Entered Garrison 6616 | -7/Garrison | Garrison Relay disabled 6630 | -7/Garrison | Triggered checkpoint 6643 | -7/Garrison | Garrison Relay disabled 6718 | -7/Garrison | Triggered checkpoint 6754 | -7/Garrison | Triggered checkpoint 6767 | -7/Garrison | Garrison Relay disabled 6814 | -7/Garrison | Discovered new exit (range 10) 6885 | -7/Garrison | Triggered checkpoint 6932 | -7/Garrison | Lost 6 parts (1p1u4w) 7009 | -7/Garrison | Discovered new exit (range 11) 7038 | -7/Garrison | Triggered checkpoint 7068 | -7/Garrison | Garrison Relay disabled 7080 | -7/Garrison | Triggered checkpoint 7124 | -7/Garrison | Triggered checkpoint 7138 | -7/Garrison | Discovered new exit (range 8) 7139 | -7/Garrison | Found embedded Infiltrators 7169 | -7/Garrison | Expanded RIF knowledge: Program Shield 7184 | -7/Garrison | Entered Factory 7184 | -7/Factory | Accompanied by 1 ally 7273 | -7/Factory | Identified exit to Garrison 7273 | -7/Factory | Entered Garrison 7296 | -7/Garrison | Triggered checkpoint 7325 | -7/Garrison | Garrison Relay disabled 7392 | -7/Garrison | Triggered checkpoint 7442 | -7/Garrison | Discovered new exit (range 10) 7453 | -7/Garrison | Expanded RIF knowledge: Autooverride 7498 | -7/Garrison | Triggered checkpoint 7503 | -7/Garrison | Garrison Relay disabled 7560 | -7/Garrison | Triggered checkpoint 7658 | -7/Garrison | Triggered checkpoint 7707 | -7/Garrison | Discovered new exit (range 14) 7733 | -7/Garrison | Entered Factory 7733 | -6/Factory | Accompanied by 2 allies 7733 | -6/Factory | Evolved 2 slots: Utility x2 7755 | -6/Factory | Build established: Botlord-Mutant 7968 | -6/Factory | Discovered new exit (range 34) 8016 | -6/Factory | Spotted B-75 Beast 8105 | -6/Factory | Identified exit to Garrison 8105 | -6/Factory | Entered Garrison 8105 | -6/Garrison | Accompanied by 1 ally 8124 | -6/Garrison | Spotted B-86 Titan 8139 | -6/Garrison | Assimilated Titan 5a with formatsys_high 8153 | -6/Garrison | Rewired B-90 Cyclops 8164 | -6/Garrison | Rewired B-86 Titan 8186 | -6/Garrison | Triggered checkpoint 8209 | -6/Garrison | Garrison Relay disabled 8248 | -6/Garrison | Destroyed Titan 5a 8319 | -6/Garrison | Expanded RIF knowledge: Autooverride 8346 | -6/Garrison | Triggered checkpoint 8390 | -6/Garrison | Triggered checkpoint 8399 | -6/Garrison | Triggered checkpoint 8496 | -6/Garrison | Discovered new exit (range 10) 8534 | -6/Garrison | Garrison Relay disabled 8589 | -6/Garrison | Garrison Relay disabled 8594 | -6/Garrison | Garrison Relay disabled 8707 | -6/Garrison | Discovered new exit (range 12) 8770 | -6/Garrison | Triggered checkpoint 8944 | -6/Garrison | Discovered new exit (range 12) 8953 | -6/Garrison | Garrison Relay disabled 8956 | -6/Garrison | Triggered checkpoint 9131 | -6/Garrison | Entered Factory 9131 | -6/Factory | Accompanied by 9 allies 9247 | -6/Factory | Garrison activated, responded to threat 9266 | -6/Factory | Identified exit to Garrison 9267 | -6/Factory | Entered Garrison 9267 | -6/Garrison | Accompanied by 7 allies 9329 | -6/Garrison | Garrison Relay disabled 9370 | -6/Garrison | Triggered checkpoint 9415 | -6/Garrison | Lost 3 parts (1p1n1w) 9433 | -6/Garrison | Triggered checkpoint 9512 | -6/Garrison | Triggered checkpoint 9518 | -6/Garrison | Garrison Relay disabled 9551 | -6/Garrison | Expanded RIF knowledge: Patrol Navigation 9567 | -6/Garrison | Discovered new exit (range 5) 9575 | -6/Garrison | Entered Factory 9575 | -5/Factory | Accompanied by 2 allies 9575 | -5/Factory | Evolved 2 slots: Utility x2 9725 | -5/Factory | Lost 4 parts (3n1u) 10210 | -5/Factory | Identified exit to Garrison 10210 | -5/Factory | Entered Garrison 10238 | -5/Garrison | Expanded RIF knowledge: Autooverride 10483 | -5/Garrison | Lost 3 parts (1p2n) 10584 | -5/Garrison | Expanded RIF knowledge: Command Fork 10626 | -5/Garrison | Triggered checkpoint 10685 | -5/Garrison | Lost 6 parts (1p1n2u2w) 10823 | -5/Garrison | Garrison Relay disabled 10885 | -5/Garrison | Spotted B-75 Beast 10891 | -5/Garrison | Triggered checkpoint 10895 | -5/Garrison | Triggered checkpoint 10902 | -5/Garrison | Triggered checkpoint 10908 | -5/Garrison | Assimilated Beast 6a with formatsys_high 10986 | -5/Garrison | Triggered checkpoint 10997 | -5/Garrison | Garrison Relay disabled 11054 | -5/Garrison | Discovered new exit (range 11) 11130 | -5/Garrison | Triggered checkpoint 11218 | -5/Garrison | Triggered checkpoint 11228 | -5/Garrison | Garrison Relay disabled 11296 | -5/Garrison | Discovered new exit (range 10) 11326 | -5/Garrison | Triggered checkpoint 11402 | -5/Garrison | Found embedded Infiltrators 11435 | -5/Garrison | Spotted B-75 Beast 11455 | -5/Garrison | Destroyed B-75 Beast 11542 | -5/Garrison | Entered Factory 11542 | -4/Factory | Evolved 2 slots: Propulsion x1, Utility x1 11725 | -4/Factory | Identified exit to Garrison 11725 | -4/Factory | Entered Garrison 11767 | -4/Garrison | System corruption reached 10% 11910 | -4/Garrison | Spotted B-86 Titan 11940 | -4/Garrison | Garrison Relay disabled 11946 | -4/Garrison | Triggered checkpoint 12196 | -4/Garrison | Triggered checkpoint 12242 | -4/Garrison | Allies destroyed B-86 Titan 12287 | -4/Garrison | Lost 4 parts (1n2u1w) 12332 | -4/Garrison | Triggered checkpoint 12376 | -4/Garrison | Expanded RIF knowledge: Command Fork 12389 | -4/Garrison | Triggered checkpoint 12410 | -4/Garrison | Garrison Relay disabled 12463 | -4/Garrison | Discovered new exit (range 14) 12668 | -4/Garrison | Garrison Relay disabled 12712 | -4/Garrison | Triggered checkpoint 12748 | -4/Garrison | Discovered new exit (range 15) 12794 | -4/Garrison | Entered Factory 12794 | -4/Factory | Accompanied by 4 allies 12828 | -4/Factory | Identified exit to Garrison 12834 | -4/Factory | Entered Garrison 12834 | -4/Garrison | Accompanied by 4 allies 12918 | -4/Garrison | Discovered new exit (range 6) 12922 | -4/Garrison | Triggered checkpoint 12950 | -4/Garrison | Triggered checkpoint 12953 | -4/Garrison | Garrison Relay disabled 13092 | -4/Garrison | Triggered checkpoint 13160 | -4/Garrison | Triggered checkpoint 13168 | -4/Garrison | Triggered checkpoint 13186 | -4/Garrison | Triggered checkpoint 13290 | -4/Garrison | Triggered checkpoint 13311 | -4/Garrison | Garrison Relay disabled 13342 | -4/Garrison | Triggered checkpoint 13352 | -4/Garrison | Discovered new exit (range 12) 13494 | -4/Garrison | Discovered new exit (range 10) 13496 | -4/Garrison | Spotted B-86 Titan 13524 | -4/Garrison | Triggered checkpoint 13534 | -4/Garrison | Garrison Relay disabled 13611 | -4/Garrison | Rewired B-90 Cyclops 13717 | -4/Garrison | Discovered new exit (range 12) 13744 | -4/Garrison | Triggered checkpoint 13888 | -4/Garrison | Triggered checkpoint 13927 | -4/Garrison | Garrison Relay disabled 14011 | -4/Garrison | Expanded RIF knowledge: Zone Cloak 14191 | -4/Garrison | Entered Factory 14191 | -4/Factory | Accompanied by 2 allies 14230 | -4/Factory | Spotted B-86 Titan 14233 | -4/Factory | Identified exit to DSF 14234 | -4/Factory | Entered DSF 14234 | -4/DSF | Accompanied by 3 allies 14258 | -4/DSF | Discovered new exit (range 16) 14264 | -4/DSF | Additional patrols routed to DSF 14378 | -4/DSF | Sterilization system engaged 14398 | -4/DSF | Ambient heat levels rising (+10) 14404 | -4/DSF | Entered Research 14404 | -3/Research | Accompanied by 7 allies 14404 | -3/Research | Evolved 2 slots: Power x1, Utility x1 14421 | -3/Research | Identified exit to Testing 14570 | -3/Research | Found Exp. Target Analyzer 14692 | -3/Research | Entered Testing 14692 | -3/Testing | Accompanied by 2 allies 15018 | -3/Testing | Superbehemoth self-activated to run performance analysis 15032 | -3/Testing | Spotted Superbehemoth 15118 | -3/Testing | Found Prototype Energy Gun 15118 | -3/Testing | Identified Warp Gun 15136 | -3/Testing | Core integrity fell below 50% 15162 | -3/Testing | Lost 15 parts (2p5n6u2w) 15182 | -3/Testing | Identified exit to Garrison 15182 | -3/Testing | Entered Garrison 15182 | -3/Garrison | Spotted B-90 Cyclops 15221 | -3/Garrison | Rewired B-75 Beast 15223 | -3/Garrison | Rewired B-75 Beast 15227 | -3/Garrison | Destroyed B-90 Cyclops 15422 | -3/Garrison | Triggered checkpoint 15433 | -3/Garrison | Core integrity fell below 20% 15464 | -3/Garrison | Spotted B-86 Titan 15466 | -3/Garrison | Triggered checkpoint 15466 | -3/Garrison | Destroyed by G-67 Veteran with Plasma Rifle Last Messages --------------- 15448_ Forked command to additional S-43 Plague... >>formatsys_high Rerouting network defenses. Erasing system data. Installing primary routines, ETC: 6. 15449_ Jacked S-43 Plague... >>formatsys_high Rerouting network defenses. Erasing system data. Installing primary routines, ETC: 6. 15450_ Reactivated Plague 8c. 15450_ Plague 8c destroyed. 15451_ Reactivated Plague 8b. 15452_ Reactivated Plague 8a. 15458_ Destroyed Imp. Antigrav System. 15460_ Plague 8b system terminally corrupted. 15464_ Penetrated by Slug. 15465_ System corrupted: Matter fused (-9). 15466_ Myomer Leg destroyed. 15466_ Beams of light sweep through the air. An alarm sounds. Map ----- +----------------------------------------------------+ | ????????????????????????????????????????????# #?? | | ????????????????????????????????????????????#=%### | | ??????????????????????????????????????????### ## | | ??????????????????????????????????????????# ## | | ??????????????????????????????????????????# ## | | ??????????????????????????????????????????# ## | | ??????????????????????????????????????????### ## | | ????????????????????????????????????????????# ## | | ????????????????????????????????????????h???# | | ????????????????????????????????????????????# | | ????????????????????????????????????????????# ## | | ????????????????????????????????????????????# ## | | ????????????????????????????????????????????# ## | | ????????????????????????????????????????????# ## | | ???????????????????????###################### #" | | ???????????????????????# = [=% ### | | ???????????????????????# =%[%%= #?? | | ???????????????????????# ################### #?? | | ???????????????????????# #?????????????????# #?? | | ???????????????????????# #????????????????? ? | | ???????????????????????# #????????????????? | | ???????????????????????# #????????????????####""" | | ???????????????????????# #?????????????????????l? | | ???????????????????????# #??????????????????????? | | ?????????????????# ## ##?????????????????????? | | ????????????# g @ #?????????????????????? | | ?????????? g g #?????????????????????? | | ????????????# gg #?????????????????????? | | ????????????# ## ;# #?????????????????????? | | ????????????# ???# ;# #?????????????????????? | | ???????????????? "?????????????????????? | | ?????????????? BB ? "Y????????????????????? | | ????????????? B "Y????????????????????? | | ????????????? ? "?????????????????????? | | ????????????? ## ?## #?????????????????????? | | ?????????????? ??# ???# #?????????????????????? | | ????????????????? l???? ?????????????????????? | | ??????????????????????? ?????????????????????? | | ??????????????????????? #?????????????????????? | | ???????????????????????####??????????????????????? | | ?????????????????????????????????????????????????? | | ?????????????????????????????????????????????????? | | ?????????????????????????????????????????????????? | | ????????????ss???????????????????????????????????? | | ???????????s?????????????????????????????????????? | | ?????????????????????????????????????????????????? | | ?????????????????????????????????????????????????? | | ?????????????????????????????????????????????????? | | ??????????????????????????????Y??????????????????? | | ?????????????????????????????????????????????????? | +----------------------------------------------------+ Best States ------------- Heat Dissipation 48 Energy Generation 45 Energy Capacity 350 Matter Stores 300 Matter Capacity 300 Sight Range 16 Terrain Scan Density 10 Jamming Range 14 Additional Mass Support 12 Armor Coverage 450 Evasion (%) 60 Target Analysis 10 Recoil Reduction 2 Offensive Hacking 20 Defensive Hacking 10 Relay Coupler Types 8 Relay Coupler Value 256 Trap Extractor Capacity 6 Item Schematics ----------------- None Robot Schematics ------------------ None Fabricated ------------ Nothing Alien Tech Used ----------------- None Achievements -------------- None Challenges ------------ None Game ------ Seed AdvancedQuantumScythe Manual? 0 Play Time 02:50:40 Cumulative 414.4 hours Start 2023.04.25 @ 10:54:57 End 2023.04.25 @ 13:55:12 Sessions 1 Manual Loads 0 Difficulty Rogue Special Mode None Game No. 448 Rogue 448 Adventurer 0 Explorer 0 Win Type - Total 12 Types 8/0/3/1/0/0/0/0/0 Lore% 82 Gallery% 90 Achievement% 80 Wizard Run 0 Options --------- ASCII 0 Keyboard 0 Movement Numpad Keybinds 0 Fullscreen 1 Font 18/Terminus Map View 76x50 Tactical HUD 1 Map Filters NONE Filters NONE Steam 1 RUN: 1e3df9cc-0e24-4812-8ba0-5096f35c341b